bitfinex/quotes_ETHUSD_20220106
["timestamp","ask_amount","ask_price","bid_price","bid_amount"]
[1641449009473,0.34636391,3450.6,3449.0,8.6799066]
[1641449009721,0.01232467,3450.3,3449.0,3.1485066]
[1641449009922,0.345,3450.2,3449.0,3.1485066]
[1641449010126,0.35352635,3450.2,3449.0,3.1485066]
[1641449010329,0.00795793,3450.1,3449.0,3.1485066]
[1641449010530,0.345,3450.0,3449.0,2.98897711]
[1641449010726,2.13281556,3449.4,3449.0,1.91304208]
[1641449011129,0.00341054,3449.3,3449.0,1.91304208]
[1641449011529,0.00284212,3449.2,3449.0,1.91304208]
[1641449011930,5.05227369,3449.1,3448.1,5.596]
[1641449012132,5.05227369,3449.1,3447.4,2.64684]
[1641449012133,5.39727369,3449.1,3447.4,1.45004]
[1641449012331,5.39727369,3449.1,3448.2,0.00284212]
[1641449012332,0.00170527,3449.0,3448.2,0.00284212]
[1641449012732,0.00113684,3448.9,3448.2,0.00284212]
[1641449012931,0.00113684,3448.9,3448.2,1.61371873]
[1641449012932,2.13955655,3448.6,3448.2,1.61371873]
[1641449013144,2.13955655,3448.6,3448.2,0.00284212]
[1641449013333,2.13955655,3448.6,3448.3,0.0022737]
[1641449013571,2.13955655,3448.6,3447.5,0.00682108]
[1641449014175,5.7952,3448.5,3447.5,0.00682108]
[1641449014574,5.7952,3448.5,3448.0,2.18584516]
[1641449014974,5.7952,3448.5,3448.1,0.00341054]
[1641449016175,5.82883762,3448.5,3448.1,0.00341054]
[1641449019129,5.82883762,3448.5,3448.2,0.00169465]
[1641449019631,5.82883762,3448.5,3448.3,0.0022737]
[1641449022183,5.79523762,3448.5,3448.3,28.8094277]
[1641449022382,5.79523762,3448.5,3448.4,17.18393343]
[1641449022582,5.79523762,3448.5,3448.4,17.1856387]
[1641449023081,5.79523762,3448.5,3448.4,13.10170527]
[1641449024384,5.79523762,3448.5,3448.4,0.00170527]
[1641449025021,5.79523762,3448.5,3448.3,0.0022737]
[1641449027928,5.82883649,3448.5,3448.3,0.0022737]
[1641449029581,5.82883649,3448.5,3448.4,0.00168058]
[1641449029984,5.82883649,3448.5,3448.4,0.00338585]
[1641449030183,10.82883649,3448.5,3448.4,0.00338585]
[1641449031585,10.82883649,3448.5,3448.2,0.56884636]
[1641449035329,10.82883649,3448.5,3448.3,8.17494]
[1641449037675,10.82883649,3448.5,3448.3,7.45]
[1641449038277,10.80883649,3448.5,3448.3,7.45]
[1641449039083,10.80883649,3448.5,3448.3,8.17495]
[1641449040336,10.80883649,3448.5,3448.4,0.00149385]
[1641449041352,10.80883649,3448.5,3448.4,1.06647328]
[1641449041937,10.80883649,3448.5,3448.4,5.51647328]
[1641449042137,10.80883649,3448.5,3448.4,0.00149385]
[1641449052674,10.80883649,3448.5,3448.1,3.21887581]
[1641449053174,10.80883649,3448.5,3448.2,0.00113685]
[1641449054579,10.828837,3448.5,3448.2,0.00113685]
[1641449055129,10.828837,3448.5,3448.2,0.72618685]
[1641449055928,10.828837,3448.5,3448.3,0.31046979]
[1641449059586,5.0,3448.5,3448.4,15.71027211]
[1641449059786,4.99632,3448.5,3448.4,15.62252915]
[1641449060191,1.155,3449.7,3449.2,0.31046979]
[1641449060388,3.2658,3449.9,3449.8,0.31046979]
[1641449060587,1.83197378,3450.1,3449.8,0.31046979]
[1641449060787,1.81197378,3450.1,3449.8,0.31046979]
[1641449060988,0.00909477,3450.0,3449.8,0.31046979]
[1641449061187,0.00909477,3450.0,3449.4,0.31046979]
[1641449061390,0.00852635,3449.9,3449.4,0.31046979]
[1641449061788,0.00795793,3449.8,3449.4,0.31046979]
[1641449062226,0.0073895,3449.7,3449.4,0.31046979]
[1641449062630,0.00682108,3449.6,3449.4,0.31046979]
[1641449063028,0.00625266,3449.5,3449.4,0.31046979]
[1641449067280,1.7410016,3450.1,3449.4,0.31046979]
[1641449067686,0.00284211,3450.0,3449.7,0.31046979]
[1641449068084,0.00227369,3449.9,3449.7,0.31046979]
[1641449068482,0.00170527,3449.8,3449.7,0.31046979]
[1641449072141,1.84115686,3450.3,3449.7,0.31046979]
[1641449072339,1.75385686,3450.3,3449.8,0.00113171]
[1641449072638,0.00227369,3450.2,3449.8,0.00113171]
[1641449073039,0.00170527,3450.1,3449.8,0.00113171]
[1641449073485,0.00113684,3450.0,3449.8,0.00113171]
[1641449073686,13.0,3449.9,3449.7,0.15207201]
[1641449074393,0.00113684,3450.0,3449.7,0.15207201]
[1641449075095,7.4481,3451.2,3450.6,0.15207201]
[1641449075398,5.0106,3451.3,3451.1,0.15207201]
[1641449075593,8.25661511,3451.4,3451.1,0.15207201]
[1641449075594,6.17,3451.4,3451.1,0.15207201]
[1641449075793,0.00682108,3451.2,3451.1,0.15207201]
[1641449076395,0.00682108,3451.2,3451.1,5.60207201]
[1641449077441,0.00682108,3451.2,3451.1,0.15207201]
[1641449079546,0.00682108,3451.2,3451.1,3.55207201]
[1641449081284,0.00682108,3451.2,3451.1,0.15207201]
[1641449082382,0.00682108,3451.2,3451.1,7.65207201]
[1641449084088,0.00682108,3451.2,3451.1,7.65376717]
[1641449093231,0.00923049,3453.2,3451.1,15.45376717]
[1641449093431,0.00923049,3453.2,3452.0,0.15207201]
[1641449093633,0.00511582,3452.1,3452.0,0.15207201]
[1641449094034,5.7928,3453.0,3452.0,0.15207201]
[1641449094433,0.0096632,3452.9,3452.5,0.15207201]
[1641449094835,0.00909478,3452.8,3452.5,0.15207201]
[1641449095234,5.7928,3453.0,3452.5,0.15207201]
[1641449095235,0.00852636,3452.7,3452.5,0.15207201]
[1641449095440,0.00852636,3452.7,3452.6,0.15207201]
[1641449095635,5.7928,3453.0,3452.6,0.15207201]
[1641449096078,0.0096632,3452.9,3452.6,0.15207201]
[1641449096279,7.4996466,3452.8,3452.6,0.15207201]
[1641449096477,3.49556764,3452.7,3452.1,0.00156228]
[1641449096676,0.345,3452.6,3452.1,0.00156228]
[1641449096876,3.91446636,3452.5,3452.1,0.00156228]
[1641449097177,6.14462109,3452.4,3452.1,0.00156228]
[1641449097376,0.345,3452.3,3452.1,0.00156228]
[1641449097577,0.35125266,3452.3,3452.1,0.00156228]
[1641449097778,23.19830085,3452.2,3452.1,0.00156228]
[1641449097977,21.45645395,3452.2,3452.1,6.228e-05]
[1641449104987,21.52764134,3452.2,3452.1,6.228e-05]
[1641449105189,0.72483,3451.7,3450.1,3.21887581]
[1641449105390,0.01214039,3451.0,3450.1,3.21887581]
[1641449105590,6.1378,3450.9,3450.2,0.00568423]
[1641449105989,1.63238778,3450.7,3450.3,1.90946048]
[1641449106190,6.1378,3450.6,3450.3,1.90946048]
[1641449106489,6.1378,3450.6,3450.4,0.00454738]
[1641449107236,6.1378,3450.6,3450.1,0.00625265]
[1641449107640,9.52669225,3450.6,3450.1,0.00625265]
[1641449107838,9.59787964,3450.6,3450.1,0.00625265]
[1641449108038,26.44787964,3450.6,3450.2,0.00162666]
[1641449108443,26.44787964,3450.6,3450.3,0.00511581]
[1641449109346,15.3,3450.1,3450.0,103.95674247]
[1641449109546,21.4378,3450.1,3450.0,103.95674247]
[1641449109845,21.50898739,3450.1,3450.0,103.95844774]
[1641449110448,23.37164937,3450.1,3450.0,103.95844774]
[1641449111085,23.30046198,3450.1,3450.0,103.95844774]
[1641449111283,40.15046198,3450.1,3450.0,99.35044774]
[1641449113589,40.45046198,3450.1,3450.0,99.35044774]
[1641449114833,40.15046198,3450.1,3450.0,99.35044774]
[1641449115236,40.45046198,3450.1,3450.0,99.35044774]
[1641449115438,43.49519429,3450.1,3450.0,99.35044774]
[1641449116038,40.45046198,3450.1,3450.0,99.35044774]
[1641449117338,23.60046198,3450.1,3450.0,99.35044774]
[1641449117538,40.45046198,3450.1,3450.0,99.35044774]
[1641449118338,40.45046198,3450.1,3450.0,79.05044774]
[1641449118586,46.15086812,3450.1,3450.0,43.62156541]
[1641449118787,46.15086812,3450.1,3450.0,40.12270445]
[1641449119189,46.15086812,3450.1,3450.0,34.27076445]
[1641449119387,46.15086812,3450.1,3450.0,28.46884915]
[1641449119594,26.90680397,3450.0,3449.4,0.01191076]
[1641449119792,26.90680397,3450.0,3449.4,1.076e-05]
[1641449119793,20.89489627,3449.5,3449.4,1.076e-05]
[1641449120090,20.89489627,3449.5,3446.6,2.86653752]
[1641449120091,0.72554,3448.2,3446.6,2.86653752]
[1641449120291,1.45107,3448.6,3446.0,0.00322449]
[1641449120292,7.0036,3448.1,3446.0,0.00322449]
[1641449120588,0.8658,3447.9,3446.6,1.08646396]
[1641449120788,9.4272,3448.1,3447.2,1.0294012]
[1641449120789,7.0036,3447.8,3447.2,1.0294012]
[1641449121093,0.8658,3447.6,3447.3,1.69933046]
[1641449121290,0.345,3447.5,3447.4,15.7]
[1641449121497,5.7928,3447.8,3447.4,15.71477901]
[1641449121989,5.7928,3447.8,3447.5,0.01421058]
[1641449129190,5.7928,3447.8,3447.6,0.00166505]
[1641449129591,5.7928,3447.8,3447.7,4.91307374]
[1641449133678,5.7928,3447.8,3447.7,0.01307374]
[1641449135983,8.76329904,3447.8,3447.7,0.01307374]
[1641449136383,5.7928,3447.8,3447.7,0.01307374]
[1641449136582,8.7734891,3447.8,3447.7,0.01307374]
[1641449136988,9.1184891,3447.8,3447.7,0.01307374]
[1641449137432,13.5517891,3447.8,3447.7,0.01307374]
[1641449137635,12.3750891,3447.8,3447.7,0.01307374]
[1641449138030,9.1184891,3447.8,3447.7,0.01307374]
[1641449138431,25.9684891,3447.8,3447.7,0.01307374]
[1641449138633,22.9878,3447.8,3447.7,0.01307374]
[1641449139236,22.9378,3447.8,3447.7,0.01307374]
[1641449139636,22.9378,3447.8,3447.7,0.01472472]
[1641449141887,24.1653,3447.8,3447.7,0.01472472]
[1641449146539,24.1653,3447.8,3446.4,1.78423147]
[1641449146738,16.85,3447.6,3446.4,1.78423147]
[1641449146941,26.06274201,3447.5,3446.5,0.00682108]
[1641449147141,16.85,3447.3,3446.5,0.00682108]
[1641449147342,16.85,3447.3,3445.7,7.6129]
[1641449147343,16.85,3447.1,3446.0,0.0096632]
[1641449147540,16.85,3447.1,3445.6,0.007]
[1641449147541,16.86224431,3446.9,3445.8,0.01080004]
[1641449147739,9.70438629,3446.8,3445.8,0.01080004]
[1641449147941,16.85,3446.7,3445.7,0.01136847]
[1641449148144,18.55294108,3446.5,3445.7,0.01136847]
[1641449148342,1.8730161,3445.8,3445.7,0.01136847]
[1641449148588,1.8730161,3445.8,3445.7,6.06136847]
[1641449149391,0.345,3445.9,3445.7,6.06136847]
[1641449149792,0.345,3445.9,3445.8,8.66080004]
[1641449149994,0.345,3445.9,3445.8,8.66254117]
[1641449150196,0.345,3445.9,3445.8,3.66254117]
[1641449150602,0.345,3445.9,3445.8,8.71254117]
[1641449150998,0.345,3445.9,3445.8,3.66254117]
[1641449156288,6.0878,3445.9,3445.8,3.66254117]
[1641449157389,6.0878,3445.9,3445.8,4.69494041]
[1641449157588,6.0878,3445.9,3445.8,3.66254117]
[1641449159195,2.1518051,3445.9,3445.8,3.66254117]
[1641449160237,2.1518051,3445.9,3445.8,0.00174113]
[1641449160434,2.1518051,3445.9,3445.8,6.30174113]
[1641449161244,2.1518051,3445.9,3445.8,0.00174113]
[1641449164094,2.09845528,3445.9,3445.8,0.00174113]
[1641449165095,5.324893,3445.9,3445.8,0.00174113]
[1641449165298,5.669893,3445.9,3445.8,0.00174113]
[1641449165493,2.44345528,3445.9,3445.8,0.00174113]
[1641449165693,2.44345528,3445.9,3444.2,0.007]
[1641449165694,11.1,3445.8,3444.2,0.007]
[1641449165895,0.72599,3445.1,3444.2,0.007]
[1641449166095,2.0441264,3444.4,3444.3,9.42288695]
[1641449166496,2.0441264,3444.4,3444.3,0.00852635]
[1641449166894,4.14258168,3444.4,3444.3,0.00852635]
[1641449167842,4.48758168,3444.4,3444.3,0.00852635]
[1641449168249,2.44345528,3444.4,3444.3,0.00852635]
[1641449168444,2.44345528,3444.4,3444.3,12.22288695]
[1641449170844,2.44345528,3444.4,3444.3,0.47288695]
[1641449171090,2.44345528,3444.4,3444.3,0.47463822]
[1641449171494,2.44345528,3444.4,3444.3,4.07463822]
[1641449173299,2.44345528,3444.4,3444.3,14.92463822]
[1641449173695,2.09845528,3444.4,3444.3,14.92463822]
[1641449175745,0.345,3445.3,3444.8,0.4643606]
[1641449176146,5.8054,3445.2,3444.9,0.00511581]
[1641449177251,0.345,3445.1,3444.9,0.00511581]
[1641449177452,5.8054,3445.0,3444.4,0.00795793]
[1641449177652,0.345,3444.9,3444.4,0.00795793]
[1641449177851,5.8054,3444.8,3444.4,0.00795793]
[1641449178252,7.76139785,3444.8,3444.6,0.4643606]
[1641449178487,5.8054,3444.8,3444.6,0.4643606]
[1641449178688,5.8054,3444.8,3444.7,0.00625266]
[1641449180194,7.63790203,3444.8,3444.7,0.00625266]
[1641449181694,7.63790203,3444.8,3444.7,0.00794774]
[1641449182096,7.63790203,3444.8,3444.7,0.47230834]
[1641449182335,7.63790203,3444.8,3444.7,4.97230834]
[1641449182539,5.8054,3444.8,3444.7,0.47230834]
[1641449183339,5.8054,3444.8,3444.7,5.47230834]
[1641449185041,5.8054,3444.8,3444.7,2.3360236]
[1641449185241,5.8054,3444.8,3444.7,0.47230834]
[1641449186291,5.8054,3444.8,3444.7,4.72230834]
[1641449186697,5.8054,3444.8,3444.7,0.47230834]
[1641449187302,5.8054,3444.8,3444.7,4.02230834]
[1641449187496,5.8054,3444.8,3444.7,0.00794774]
[1641449188297,5.8054,3444.8,3444.7,4.32230834]
[1641449188498,3.5,3444.7,3444.2,0.007]
[1641449188698,0.72605,3444.5,3444.2,0.007]
[1641449188899,0.72605,3444.5,3444.3,0.00227369]
[1641449189499,0.72605,3444.5,3444.3,1.95328409]
[1641449189739,5.87658739,3444.8,3444.3,1.95328409]
[1641449189941,6.60257739,3444.8,3444.4,0.00170527]
[1641449190138,5.87658739,3444.8,3444.4,0.00170527]
[1641449190739,5.8054,3444.8,3444.4,0.00170527]
[1641449192141,10.8054,3444.8,3444.5,0.00152787]
[1641449194807,8.9496,3444.8,3444.5,1.02205868]
[1641449195006,2.723833,3445.9,3445.6,1.01336402]
[1641449195211,2.723833,3445.9,3445.7,1.83127454]
[1641449198840,2.723833,3445.9,3444.6,1.16234421]
[1641449199044,2.723833,3445.9,3444.6,0.02424421]
[1641449199344,2.723833,3445.9,3444.6,0.01223722]
[1641449199745,2.723833,3445.9,3444.5,1.41974913]
[1641449199947,2.723833,3445.9,3444.5,1.91974913]
[1641449200147,2.723833,3445.9,3444.5,1.41974913]
[1641449200992,2.723833,3445.9,3444.5,1.91974913]
[1641449201192,2.723833,3445.9,3445.8,2.23086351]
[1641449201694,2.73065408,3445.9,3445.8,2.23086351]
[1641449202898,2.73065408,3445.9,3445.8,2.23221579]
[1641449203096,2.73188447,3445.9,3445.8,2.23221579]
[1641449206542,2.73188447,3445.9,3445.8,0.00135228]
[1641449206944,8.13188447,3445.9,3445.8,0.00135228]
[1641449208247,2.73188447,3445.9,3445.8,0.00135228]
[1641449208700,8.83598447,3445.9,3445.8,0.00135228]
[1641449209103,8.53598447,3445.9,3445.8,0.00135228]
[1641449209303,8.83598447,3445.9,3445.8,0.00135228]
[1641449209904,8.53598447,3445.9,3445.8,0.00135228]
[1641449220946,20.18098447,3445.9,3445.8,0.00135228]
[1641449221645,20.18098447,3445.9,3445.2,0.01200684]
[1641449221646,0.72593,3445.6,3445.2,0.01200684]
[1641449221849,6.1491,3445.5,3445.2,0.01200684]
[1641449222047,1.88462838,3445.4,3445.2,0.01200684]
[1641449222247,13.9991,3445.3,3445.2,0.01200684]
[1641449222445,14.00251054,3445.3,3445.2,0.01200684]
[1641449223250,14.00251054,3445.3,3444.2,0.007]
[1641449223491,0.7259,3445.2,3444.2,0.007]
[1641449223691,0.72874212,3445.2,3444.3,0.00227369]
[1641449223895,0.00227369,3445.1,3444.6,0.01200867]
[1641449224295,1.94914575,3444.8,3444.6,0.01200867]
[1641449224495,1.94914575,3444.8,3444.7,0.00134251]
[1641449225095,1.94914575,3444.8,3442.1,1.444]
[1641449225096,11.35,3444.7,3442.1,1.444]
[1641449225295,0.01299987,3444.2,3442.4,0.35733957]
[1641449225495,0.01299987,3444.2,3442.4,0.345]
[1641449225699,0.01299987,3444.2,3442.4,0.445]
[1641449225897,0.01299987,3444.2,3442.6,1.4519772]
[1641449226096,0.01299987,3444.2,3442.7,0.5]
[1641449226397,0.01299987,3444.2,3442.8,0.00852636]
[1641449227094,0.01299987,3444.2,3442.8,0.50852636]
[1641449227544,0.01299987,3444.2,3442.9,0.00795793]
[1641449227745,0.345,3444.5,3443.3,1.88010499]
[1641449227746,2.26896574,3443.7,3443.3,1.88010499]
[1641449227944,2.26896574,3443.7,3442.9,0.00795793]
[1641449228144,2.26896574,3443.7,3443.4,0.00511582]
[1641449228346,2.26896574,3443.7,3442.8,0.00852636]
[1641449228545,2.26896574,3443.7,3442.9,0.00795793]
[1641449228746,2.26896574,3443.7,3442.8,0.72021753]
[1641449228951,2.26896574,3443.7,3443.1,0.71169117]
[1641449229351,2.26896574,3443.7,3443.2,0.00625266]
[1641449229551,0.00170527,3444.6,3444.0,0.71169117]
[1641449229757,5.8067,3444.5,3444.1,0.71169117]
[1641449229951,5.80783684,3444.5,3444.1,0.71282802]
[1641449231392,8.01870485,3444.5,3444.1,0.71282802]
[1641449233397,5.80783684,3444.5,3444.1,0.71282802]
[1641449234501,0.00113684,3444.5,3444.1,0.71282802]
[1641449234942,0.00113684,3444.5,3444.2,0.00126357]
[1641449236544,0.00113684,3444.5,3444.0,0.66409159]
[1641449236749,0.00170527,3444.4,3444.0,0.66409159]
[1641449237044,0.00113685,3444.3,3444.0,0.66409159]
[1641449237443,0.00227369,3444.5,3444.0,0.66409159]
[1641449237844,0.00170527,3444.4,3444.0,0.66409159]
[1641449238144,2.12089489,3444.6,3444.0,0.66409159]
[1641449238145,0.00113685,3444.3,3444.0,0.66409159]
[1641449238591,2.12089489,3444.6,3444.0,0.66409159]
[1641449238592,0.00227369,3444.5,3444.0,0.66409159]
[1641449238999,0.00170527,3444.4,3444.0,0.66409159]
[1641449239401,2.12089489,3444.6,3444.0,0.66409159]
[1641449239402,0.00113685,3444.3,3444.0,0.66409159]
[1641449239798,0.00227369,3444.5,3444.0,0.66409159]
[1641449240197,2.12089489,3444.6,3444.0,0.66409159]
[1641449240198,0.00170527,3444.4,3444.0,0.66409159]
[1641449240598,0.00113685,3444.3,3444.0,0.66409159]
[1641449240999,0.00227369,3444.5,3444.0,0.66409159]
[1641449241400,0.00170527,3444.4,3444.0,0.66409159]
[1641449241799,0.00113685,3444.3,3444.0,0.66409159]
[1641449242102,0.00227369,3444.5,3444.0,0.66409159]
[1641449242345,3.09533719,3444.5,3444.0,0.66409159]
[1641449242542,0.00170527,3444.4,3444.0,0.66409159]
[1641449242943,0.00113685,3444.3,3444.0,0.66409159]
[1641449243344,0.00227369,3444.5,3444.0,0.66409159]
[1641449243746,0.00170527,3444.4,3444.0,0.66409159]
[1641449244150,0.00113685,3444.3,3444.0,0.66409159]
[1641449244351,5.80803685,3444.3,3444.0,0.66409159]
[1641449244550,5.8069,3444.3,3444.0,0.66409159]
[1641449245552,5.8069,3444.3,3444.1,0.00115123]
[1641449252746,5.8069,3444.3,3443.0,2.11835734]
[1641449253148,8.530733,3444.3,3443.1,0.00568424]
[1641449253492,12.156833,3444.3,3443.1,0.00568424]
[1641449254096,1.89412121,3444.1,3443.7,1.6980237]
[1641449254299,1.89412121,3444.1,3443.1,0.00568424]
[1641449254498,1.89412121,3444.1,3443.8,0.00170527]
[1641449254698,1.89412121,3444.1,3442.6,0.00852635]
[1641449255101,1.89412121,3444.1,3442.5,0.00909478]
[1641449255298,2.1300946,3443.1,3442.7,2.08777819]
[1641449255498,2.1300946,3443.1,3442.5,0.00909478]
[1641449255697,2.1300946,3443.1,3442.8,0.00738951]
[1641449255899,1.2006,3443.9,3442.6,0.00113597]
[1641449256301,1.2006,3443.9,3442.7,0.00795793]
[1641449257348,1.6616647,3443.2,3442.8,1.7030247]
[1641449257542,1.6616647,3443.2,3442.7,0.00795793]
[1641449257745,1.6616647,3443.2,3442.9,0.00682108]
[1641449257943,1.2006,3443.9,3443.4,0.3643871]
[1641449258343,1.2006,3443.9,3443.5,0.00341054]
[1641449259048,1.75991706,3443.8,3443.5,0.00341054]
[1641449259248,3.8485,3444.2,3443.5,0.00341054]
[1641449259548,11.351052,3444.3,3443.5,0.00341054]
[1641449260351,13.02979944,3444.3,3444.0,0.3643871]
[1641449261495,11.351052,3444.3,3444.0,0.3643871]
[1641449262294,7.724952,3444.3,3444.0,0.3643871]
[1641449266550,7.723833,3444.3,3444.1,0.00102331]
[1641449266751,0.01244568,3444.2,3444.1,0.00102331]
[1641449269900,10.87834568,3444.2,3444.1,0.00102331]
[1641449270300,24.31828847,3444.2,3444.1,0.00102331]
[1641449270500,21.68524568,3444.2,3444.1,0.00102331]
[1641449270704,38.53524568,3444.2,3444.1,0.00102331]
[1641449270902,38.88024568,3444.2,3444.1,0.00102331]
[1641449271103,16.85,3444.0,3441.7,3.1341493]
[1641449271305,16.85,3444.0,3441.6,3.1341493]
[1641449271306,0.0127517,3443.5,3441.6,3.1341493]
[1641449271504,0.0127517,3443.5,3441.8,0.0096632]
[1641449271505,0.345,3443.4,3441.8,0.0096632]
[1641449271702,1.8605687,3442.5,3442.1,2.10518786]
[1641449271902,1.8605687,3442.5,3441.5,0.01136847]
[1641449272102,1.8605687,3442.5,3442.2,0.00738951]
[1641449272354,1.8605687,3442.5,3441.5,0.01136847]
[1641449273153,18.7105687,3442.5,3440.6,1.35321059]
[1641449273357,0.01234505,3441.7,3440.3,0.5824349]
[1641449273554,0.01234505,3441.7,3440.3,0.55987017]
[1641449273755,0.00341054,3441.6,3440.3,0.35287017]
[1641449273960,0.00341054,3441.6,3440.6,2.12230226]
[1641449273961,1.71422724,3441.0,3440.6,2.12230226]
[1641449274158,1.71422724,3441.0,3440.4,0.00170527]
[1641449274361,0.00113685,3440.9,3440.4,0.00170527]
[1641449274556,0.00113685,3440.9,3440.2,6.16994369]
[1641449274757,0.00113685,3440.9,3440.2,6.13761369]
[1641449274956,0.00284211,3440.8,3440.2,6.13761369]
[1641449275357,0.00227369,3440.7,3440.2,6.13761369]
[1641449275558,0.00227369,3440.7,3440.3,2.12065412]
[1641449275758,0.00833699,3441.0,3440.4,7.45]
[1641449275995,0.00833699,3441.0,3440.4,7.45113685]
[1641449276196,0.00170527,3440.9,3440.4,7.45113685]
[1641449276594,3.813,3441.7,3440.4,7.45113685]
[1641449276595,0.00113684,3440.8,3440.4,7.45113685]
[1641449276996,0.00568423,3441.6,3440.4,7.45113685]
[1641449277196,1.79255229,3441.2,3440.5,0.00140894]
[1641449277598,0.00284211,3441.1,3440.5,0.00140894]
[1641449277998,0.00227369,3441.0,3440.5,0.00140894]
[1641449279500,0.00227369,3441.0,3440.4,2.95018376]
[1641449279744,0.00284212,3440.9,3440.4,2.95018376]
[1641449279945,0.00284212,3440.9,3440.4,1.75911527]
[1641449280146,0.00227369,3440.8,3440.4,1.75911527]
[1641449280547,0.00170527,3440.7,3440.4,1.75911527]
[1641449280945,0.00113685,3440.6,3440.4,1.75911527]
[1641449281248,0.00341054,3441.0,3440.4,1.75911527]
[1641449281745,3.6075,3441.1,3440.4,1.75911527]
[1641449281746,0.00284212,3440.9,3440.4,1.75911527]
[1641449282147,0.00227369,3440.8,3440.4,1.75911527]
[1641449282548,0.00170527,3440.7,3440.4,1.75911527]
[1641449282949,0.00113685,3440.6,3440.4,1.75911527]
[1641449283350,3.6075,3441.1,3440.4,1.75911527]
[1641449283351,0.00341054,3441.0,3440.4,1.75911527]
[1641449283601,0.00341054,3441.0,3439.9,0.5813062]
[1641449283804,0.00284212,3440.9,3439.4,0.207]
[1641449284004,0.00284212,3440.9,3440.0,0.00227369]
[1641449284205,0.00227369,3440.8,3440.0,0.00227369]
[1641449284605,0.00170527,3440.7,3439.4,0.11960282]
[1641449284905,0.00113685,3440.6,3440.3,1.85344821]
[1641449285307,0.00341054,3441.0,3440.3,1.85344821]
[1641449285705,0.00284212,3440.9,3440.3,1.85344821]
[1641449286105,0.00227369,3440.8,3440.3,1.85344821]
[1641449286504,0.00170527,3440.7,3440.3,1.85344821]
[1641449286704,5.80860527,3440.7,3440.3,1.85344821]
[1641449286905,0.00113685,3440.6,3440.3,1.85344821]
[1641449287105,5.8069,3440.5,3440.3,1.85344821]
[1641449287746,5.8069,3440.5,3440.4,0.00128051]
[1641449288746,5.8069,3440.5,3440.4,0.23347129]
[1641449289149,5.8069,3440.5,3440.4,4.48347129]
[1641449289350,5.8069,3440.5,3440.4,0.23347129]
[1641449289751,5.7915,3440.5,3440.4,15.88347129]
[1641449289952,5.7915,3440.5,3440.4,15.91397157]
[1641449289953,5.6123,3440.5,3440.4,15.91397157]
[1641449290157,3.3881,3440.5,3440.4,16.21397157]
[1641449290352,3.3848,3440.5,3440.4,16.21397157]
[1641449290550,3.3848,3440.5,3440.4,15.88347129]
[1641449290750,0.00113685,3440.6,3440.5,15.88219078]
[1641449291896,0.00112021,3440.8,3440.7,0.23219078]
[1641449292298,0.00225705,3440.8,3440.7,0.23219078]
[1641449293098,8.25e-05,3440.8,3440.4,0.23347129]
[1641449293499,8.25e-05,3440.8,3440.5,0.00162277]
[1641449294500,8.25e-05,3440.8,3440.6,0.23219078]
[1641449294763,8.25e-05,3440.8,3440.7,14.73219078]
[1641449298355,8.25e-05,3440.8,3440.7,14.73354646]
[1641449300402,5.0000825,3440.8,3440.7,2.43652218]
[1641449301028,5.0000825,3440.8,3440.7,9.28652218]
[1641449301604,5.0000825,3440.8,3440.7,10.34616039]
[1641449302007,5.0000825,3440.8,3440.7,14.49616039]
[1641449302649,5.0000825,3440.8,3440.7,10.34616039]
[1641449303851,5.0000825,3440.8,3440.7,14.84616039]
[1641449304854,5.0000825,3440.8,3440.7,19.19616039]
[1641449305457,5.0000825,3440.8,3440.7,14.84616039]
[1641449305998,0.1220034,3440.8,3440.7,19.19616039]
[1641449306996,0.1220034,3440.8,3440.7,14.84616039]
[1641449307797,0.1220034,3440.8,3440.7,9.28652218]
[1641449307998,0.11426005,3440.8,3440.7,13.53652218]
[1641449308598,0.00495739,3440.8,3440.7,17.13652218]
[1641449310256,2.72879039,3440.8,3440.7,9.28652218]
[1641449310754,2.72879039,3440.8,3440.7,16.73652218]
[1641449311757,2.72879039,3440.8,3440.7,9.28652218]
[1641449312760,2.72879039,3440.8,3440.7,13.13652218]
[1641449314605,2.72879039,3440.8,3440.7,9.28652218]
[1641449315008,3.9457,3441.7,3440.8,0.67860961]
[1641449315306,2.83220997,3443.2,3442.3,0.23219078]
[1641449315307,7.3619,3442.8,3442.3,0.23219078]
[1641449315505,7.3619,3442.8,3440.9,0.03796196]
[1641449315506,15.158,3442.8,3442.4,0.23219078]
[1641449315911,11.4811,3442.8,3442.4,0.23219078]
[1641449316106,2.00618548,3442.6,3442.4,0.23219078]
[1641449316510,0.0096632,3442.5,3442.4,0.23219078]
[1641449318154,11.1596632,3442.5,3441.8,0.01208725]
[1641449318350,0.0122963,3442.2,3441.8,0.01208725]
[1641449318551,17.195,3442.1,3441.8,0.01208725]
[1641449318752,0.35238951,3442.1,3441.8,0.01208725]
[1641449318953,0.00682109,3442.0,3441.8,0.01208725]
[1641449319353,2.16539264,3441.9,3441.1,0.8125178]
[1641449319754,0.00568424,3441.8,3441.1,0.8125178]
[1641449320155,0.00511582,3441.7,3441.1,0.8125178]
[1641449320554,0.00454739,3441.6,3441.2,0.8125178]
[1641449321001,0.00397897,3441.5,3441.2,0.8125178]
[1641449321402,0.00341055,3441.4,3441.2,0.8125178]
[1641449321804,0.00284212,3441.3,3441.2,0.8125178]
[1641449324511,0.00019815,3441.3,3441.2,0.8125178]
[1641449325647,0.00019815,3441.3,3441.1,0.8125178]
[1641449329219,0.00019815,3441.3,3441.1,0.84603874]
[1641449329416,0.00019815,3441.3,3441.2,0.8125178]
[1641449330018,0.00019815,3441.3,3441.2,0.8138031]
[1641449333956,5.45978926,3442.5,3441.5,1.84865575]
[1641449334158,1.74332164,3442.2,3441.6,0.8125178]
[1641449334357,0.00284212,3441.8,3441.6,0.8125178]
[1641449334557,5.8106,3441.7,3441.6,0.8125178]
[1641449334856,5.8128737,3441.7,3441.6,0.8125178]
[1641449335557,5.8128737,3441.7,3441.6,7.1125178]
[1641449335998,5.8128737,3441.7,3441.6,0.8125178]
[1641449337503,5.8128737,3441.7,3441.6,4.1625178]
[1641449337902,5.8128737,3441.7,3441.6,0.8125178]
[1641449339512,8.0,3441.6,3441.2,0.0012853]
[1641449339756,16.85,3441.4,3441.2,0.0012853]
[1641449339955,18.01001271,3441.3,3441.2,0.0012853]
[1641449340359,6.1556,3441.3,3441.2,0.0012853]
[1641449340757,9.46642923,3441.3,3441.2,0.0012853]
[1641449340959,3.0,3441.2,3441.0,7.498e-05]
[1641449341158,0.345,3441.1,3441.0,7.498e-05]
[1641449341456,0.345,3441.1,3439.8,0.5813698]
[1641449341656,0.345,3441.1,3439.9,0.72667]
[1641449341857,0.345,3441.1,3440.6,0.01217494]
[1641449342060,5.8106,3441.3,3440.6,0.01217494]
[1641449342258,5.8106,3441.3,3440.7,1.63316081]
[1641449342458,5.8106,3441.3,3440.9,1.22519608]